[Event "DVM U10 2024"]
[Site "Duesseldorf"]
[Date "2024.12.28"]
[Round "6"]
[White "Thotli, Jathin Krishna"]
[Black "Obermeier, Vitus"]
[Result "1-0"]
[ECO "B00"]
[WhiteElo "1422"]
[BlackElo "982"]
[Annotator "NA RC"]
[PlyCount "57"]
[EventDate "2024.12.23"]
[EventType "team-tourn"]
[EventRounds "7"]
[EventCountry "GER"]
[SourceTitle "playchess.com"]
[Source "ChessBase"]
[SourceQuality "1"]
[TimeControl "3300+5"]

1. e4 {[%emt 0:00:04]} e6 {[%emt 0:00:09]} 2. Nf3 {[%emt 0:00:03]} Nc6 {[%emt 0:00:09]} 3. Nc3 {[%emt 0:00:08]} Bb4 {[%emt 0:00:16]} 4. d4 {[%emt 0:00:08]} Bxc3+ {[%emt 0:00:12]} 5. bxc3 {[%emt 0:00:10]} Nf6 {[%emt 0:00:31]} 6. e5 {[%emt 0:00:07]} Nd5 {[%emt 0:00:14]} 7. c4 {[%emt 0:00:10]} Nc3 {[%emt 0:00:46]} 8. Qd3 {[%emt 0:00:19]} Na4 {[%emt 0:00:25]} 9. Qb3 {[%emt 0:00:06]} Nb6 {[%emt 0:01:09]} 10. Ng5 {[%emt 0:00:19]} Nxd4 {[%emt 0:00:25]} 11. Qd3 {[%emt 0:00:10]} Nc6 {[%emt 0:00:42]} 12. Qf3 {[%emt 0:00:05]} Nxe5 {[%emt 0:00:28]} 13. Qf4 {[%emt 0:00:19]} Qf6 {[%emt 0:01:15]} 14. Qd4 {[%emt 0:00:39]} c5 {[%emt 0:00:29]} 15. Qe4 {[%emt 0:01:24]} d5 {[%emt 0:00:28]} 16. cxd5 {[%emt 0:00:16]} exd5 {[%emt 0:00:08]} 17. Bb5+ {[%emt 0:00:09]} Nbd7 {[%emt 0:00:51]} 18. Bxd7+ {[%emt 0:00:23]} Bxd7 {[%emt 0:00:39]} 19. Qxd5 {[%emt 0:00:00]} Rd8 {[%emt 0:00:44]} 20. O-O {[%emt 0:00:18]} h6 {[%emt 0:00:44]} 21. Ne4 {[%emt 0:00:08]} Qf5 {[%emt 0:00:40]} 22. Nd6+ {[%emt 0:00:10]} Ke7 {[%emt 0:00:22]} 23. Nxf5+ {[%emt 0:00:04]} Bxf5 {[%emt 0:00:04]} 24. Qxe5+ {[%emt 0:00:12]} Be6 {[%emt 0:00:52]} 25. Qxc5+ {[%emt 0:00:00]} Ke8 {[%emt 0:00:25]} 26. Ba3 {[%emt 0:00:32]} Rd7 {[%emt 0:00:24]} 27. Rfd1 {[%emt 0:00:22]} Rxd1+ {[%emt 0:00:51]} 28. Rxd1 {[%emt 0:00:06]} Rf8 {[%emt 0:00:26]} 29. Qxf8# {[%emt 0:00:12]} 1-0

[Event "DVM U10 2024"]
[Site "Duesseldorf"]
[Date "2024.12.28"]
[Round "6"]
[White "Benischke, Moritz"]
[Black "Pawlus, Daniel"]
[Result "0-1"]
[ECO "B07"]
[WhiteElo "1421"]
[BlackElo "1521"]
[Annotator "NA RC"]
[PlyCount "102"]
[EventDate "2024.12.23"]
[EventType "team-tourn"]
[EventRounds "7"]
[EventCountry "GER"]
[SourceTitle "playchess.com"]
[Source "ChessBase"]
[SourceQuality "1"]
[TimeControl "3300+5"]

1. d4 {[%emt 0:00:01]} d6 {[%emt 0:00:08]} 2. e4 {[%emt 0:00:11]} e5 {[%emt 0:00:18]} 3. dxe5 {[%emt 0:00:09]} dxe5 {[%emt 0:00:09]} 4. Qxd8+ {[%emt 0:00:07]} Kxd8 {[%emt 0:00:07]} 5. Nf3 {[%emt 0:00:20]} f6 {[%emt 0:00:35]} 6. Bc4 {[%emt 0:00:29]} c6 {[%emt 0:01:16]} 7. O-O {[%emt 0:00:15]} Bg4 {[%emt 0:01:01]} 8. Be2 {[%emt 0:00:17]} Kc7 {[%emt 0:01:02]} 9. Nc3 {[%emt 0:00:19]} Nd7 {[%emt 0:02:00]} 10. h3 {[%emt 0:00:35]} Be6 {[%emt 0:00:34]} 11. Be3 {[%emt 0:00:55]} Bc5 {[%emt 0:01:40]} 12. Bd2 {[%emt 0:00:42]} Rd8 {[%emt 0:04:37]} 13. Na4 {[%emt 0:00:28]} Ne7 {[%emt 0:04:22]} 14. c4 {[%emt 0:01:20]} Ng6 {[%emt 0:01:13]} 15. Nxc5 {[%emt 0:00:26]} Nxc5 {[%emt 0:00:11]} 16. Be3 {[%emt 0:01:05]} Nxe4 {[%emt 0:01:02]} 17. Bxa7 {[%emt 0:00:29]} b6 {[%emt 0:00:30]} 18. c5 {[%emt 0:00:42]} Nxc5 {[%emt 0:00:46]} 19. b4 {[%emt 0:00:30]} Ne4 {[%emt 0:00:45]} 20. a4 {[%emt 0:01:04]} Ra8 {[%emt 0:01:40]} 21. a5 {[%emt 0:01:11]} Rxa7 {[%emt 0:00:19]} 22. axb6+ {[%emt 0:00:20]} Kxb6 {[%emt 0:00:09]} 23. Rac1 {[%emt 0:00:28]} Nf4 {[%emt 0:01:45]} 24. Rfe1 {[%emt 0:00:56]} Nxe2+ {[%emt 0:01:53]} 25. Rxe2 {[%emt 0:00:11]} Nd6 {[%emt 0:01:20]} 26. Rec2 {[%emt 0:00:23]} Bd5 {[%emt 0:01:16]} 27. Rd2 {[%emt 0:02:07]} Ra4 {[%emt 0:00:44]} 28. Rb1 {[%emt 0:00:38]} Kb5 {[%emt 0:01:48]} 29. Rbd1 {[%emt 0:00:36]} Rxb4 {[%emt 0:01:19]} 30. Ne1 {[%emt 0:00:43]} Rd8 {[%emt 0:02:23]} 31. Nd3 {[%emt 0:00:34]} Rd4 {[%emt 0:01:12]} 32. Rb1+ {[%emt 0:01:48]} Ka5 {[%emt 0:01:09]} 33. Rdb2 {[%emt 0:01:22]} Be4 {[%emt 0:02:46]} 34. Ra1+ {[%emt 0:01:03]} Ra4 {[%emt 0:00:07]} 35. Rd1 {[%emt 0:00:59]} Bxd3 {[%emt 0:01:20]} 36. Rxd3 {[%emt 0:00:16]} Nc4 {[%emt 0:00:56]} 37. Rxd8 {[%emt 0:00:44]} Nxb2 {[%emt 0:00:03]} 38. Rd7 {[%emt 0:00:14]} c5 {[%emt 0:00:38]} 39. Rxg7 {[%emt 0:00:19]} c4 {[%emt 0:00:05]} 40. Rxh7 {[%emt 0:00:27]} c3 {[%emt 0:00:05]} 41. Ra7+ {[%emt 0:00:43]} Kb5 {[%emt 0:01:06]} 42. Rb7+ {[%emt 0:00:13]} Kc6 {[%emt 0:00:06]} 43. Rf7 {[%emt 0:00:26]} c2 {[%emt 0:00:15]} 44. Rxf6+ {[%emt 0:00:07]} Kd5 {[%emt 0:00:09]} 45. g4 {[%emt 0:00:32]} c1=Q+ {[%emt 0:00:07]} 46. Kg2 {[%emt 0:00:18]} Rf4 {[%emt 0:01:06]} 47. Rh6 {[%emt 0:00:29]} Qd2 {[%emt 0:00:40]} 48. Rd6+ {[%emt 0:00:24]} Kxd6 {[%emt 0:00:17]} 49. h4 {[%emt 0:00:18]} Rxf2+ {[%emt 0:00:29]} 50. Kg3 {[%emt 0:00:18]} Qf4+ {[%emt 0:00:17]} 51. Kh3 {[%emt 0:00:12]} Rh2# {[%emt 0:00:09]} 0-1

[Event "DVM U10 2024"]
[Site "Duesseldorf"]
[Date "2024.12.28"]
[Round "6"]
[White "Wittenberger, Henri"]
[Black "Wessels, Keke"]
[Result "0-1"]
[ECO "A36"]
[WhiteElo "1421"]
[BlackElo "1568"]
[Annotator "NA RC"]
[PlyCount "129"]
[EventDate "2024.12.23"]
[EventType "team-tourn"]
[EventRounds "7"]
[EventCountry "GER"]
[SourceTitle "playchess.com"]
[Source "ChessBase"]
[SourceQuality "1"]
[TimeControl "3300+5"]

1. e4 {[%emt 0:00:05]} c5 {[%emt 0:00:12]} 2. c4 {[%emt 0:00:10]} e6 {[%emt 0:00:36]} 3. Nc3 {[%emt 0:00:23]} Nc6 {[%emt 0:00:46]} 4. Nge2 {[%emt 0:00:49]} g6 {[%emt 0:00:41]} 5. g3 {[%emt 0:00:20]} Bg7 {[%emt 0:00:55]} 6. Bg2 {[%emt 0:00:43]} a6 {[%emt 0:01:42]} 7. d3 {[%emt 0:01:02]} Nge7 {[%emt 0:01:08]} 8. O-O {[%emt 0:01:27]} O-O {[%emt 0:00:52]} 9. h3 {[%emt 0:01:04]} Qc7 {[%emt 0:04:44]} 10. Kh2 {[%emt 0:03:48]} Rb8 {[%emt 0:07:13]} 11. f4 {[%emt 0:02:07]} Nd4 {[%emt 0:02:47]} 12. Kh1 {[%emt 0:03:46]} Nec6 {[%emt 0:02:41]} 13. g4 {[%emt 0:02:02]} Re8 {[%emt 0:05:08]} 14. f5 {[%emt 0:05:39]} exf5 {[%emt 0:04:03]} 15. gxf5 {[%emt 0:00:20]} gxf5 {[%emt 0:01:17]} 16. exf5 {[%emt 0:00:08]} Be5 {[%emt 0:06:13]} 17. Nxd4 {[%emt 0:01:25]} Bxd4 {[%emt 0:00:55]} 18. Qg4+ {[%emt 0:00:42]} Kh8 {[%emt 0:00:53]} 19. Nd5 {[%emt 0:04:39]} Qd8 {[%emt 0:04:53]} 20. Bg5 {[%emt 0:01:26]} f6 {[%emt 0:01:52]} 21. Bxf6+ {[%emt 0:00:08]} Bxf6 {[%emt 0:00:11]} 22. Nxf6 Qxf6 {[%emt 0:00:17]} 23. Bd5 {[%emt 0:01:12]} d6 {[%emt 0:01:09]} 24. Rf2 {[%emt 0:01:42]} Bd7 {[%emt 0:01:00]} 25. Qh5 {[%emt 0:01:01]} Nd4 {[%emt 0:00:25]} 26. Rg1 {[%emt 0:00:33]} Bc6 {[%emt 0:00:36]} 27. Rg6 {[%emt 0:01:19]} Bxd5+ {[%emt 0:00:23]} 28. cxd5 {[%emt 0:00:23]} Re1+ {[%emt 0:00:17]} 29. Kg2 {[%emt 0:00:17]} Rg8 {[%emt 0:00:41]} 30. Rxg8+ {[%emt 0:00:42]} Kxg8 {[%emt 0:00:04]} 31. Qg4+ {[%emt 0:00:37]} Qg7 {[%emt 0:00:15]} 32. Qxg7+ {[%emt 0:00:21]} Kxg7 {[%emt 0:00:09]} 33. f6+ {[%emt 0:00:13]} Kf7 {[%emt 0:00:07]} 34. Kg3 {[%emt 0:00:26]} Re3+ {[%emt 0:00:15]} 35. Kg4 {[%emt 0:00:06]} Rxd3 {[%emt 0:00:11]} 36. h4 {[%emt 0:00:23]} Re3 {[%emt 0:00:16]} 37. Kh5 {[%emt 0:00:18]} Re5+ {[%emt 0:00:16]} 38. Kh6 {[%emt 0:00:08]} Rf5 {[%emt 0:00:35]} 39. Rg2 {[%emt 0:00:08]} Kxf6 {[%emt 0:00:25]} 40. Kxh7 {[%emt 0:00:12]} Rh5+ {[%emt 0:00:08]} 41. Kg8 {[%emt 0:00:08]} Rxh4 {[%emt 0:00:19]} 42. Rg7 {[%emt 0:00:10]} b5 {[%emt 0:00:35]} 43. Ra7 {[%emt 0:00:22]} Rg4+ {[%emt 0:00:03]} 44. Kf8 {[%emt 0:00:20]} Rh4 {[%emt 0:00:07]} 45. Kg8 {[%emt 0:00:18]} Rh5 {[%emt 0:00:02]} 46. Rxa6 {[%emt 0:00:15]} Rxd5 {[%emt 0:00:07]} 47. Kf8 {[%emt 0:00:25]} Rh5 {[%emt 0:00:00]} 48. Ke8 {[%emt 0:00:13]} Rh8+ {[%emt 0:00:11]} 49. Kd7 {[%emt 0:00:23]} Nf5 {[%emt 0:00:09]} 50. Kc7 {[%emt 0:00:15]} Ke5 {[%emt 0:00:10]} 51. Kc6 {[%emt 0:00:48]} Nd4+ {[%emt 0:00:03]} 52. Kd7 {[%emt 0:00:15]} Rh7+ {[%emt 0:00:06]} 53. Kc8 {[%emt 0:00:11]} d5 {[%emt 0:00:05]} 54. Ra3 {[%emt 0:00:25]} b4 {[%emt 0:00:08]} 55. Re3+ {[%emt 0:00:18]} Kf4 {[%emt 0:00:02]} 56. Re8 {[%emt 0:00:20]} Nf5 {[%emt 0:00:10]} 57. Rd8 {[%emt 0:00:24]} d4 {[%emt 0:00:07]} 58. a3 {[%emt 0:00:09]} bxa3 {[%emt 0:00:05]} 59. bxa3 {[%emt 0:00:14]} Ra7 {[%emt 0:00:03]} 60. Re8 {[%emt 0:00:49]} Nd6+ {[%emt 0:00:02]} 61. Kd8 {[%emt 0:00:02]} Ra8+ {[%emt 0:00:02]} 62. Kd7 {[%emt 0:00:19]} Nxe8 {[%emt 0:00:04]} 63. Kc6 {[%emt 0:00:31]} Rxa3 {[%emt 0:00:02]} 64. Kxc5 {[%emt 0:00:11]} d3 {[%emt 0:00:02]} 65. Kd4 {[%emt 0:00:24]} 0-1

[Event "DVM U10 2024"]
[Site "Duesseldorf"]
[Date "2024.12.28"]
[Round "6"]
[White "Karabetyan, Levon"]
[Black "Stopp, Bruno"]
[Result "0-1"]
[ECO "C60"]
[WhiteElo "1230"]
[BlackElo "1519"]
[Annotator "NA RC"]
[PlyCount "124"]
[EventDate "2024.12.23"]
[EventType "team-tourn"]
[EventRounds "7"]
[EventCountry "GER"]
[SourceTitle "playchess.com"]
[Source "ChessBase"]
[SourceQuality "1"]
[TimeControl "3300+5"]

1. e4 {[%emt 0:00:04]} e5 {[%emt 0:00:05]} 2. Nf3 {[%emt 0:00:09]} Nc6 {[%emt 0:00:02]} 3. Bb5 {[%emt 0:00:04]} Nge7 {[%emt 0:00:07]} 4. O-O {[%emt 0:00:13]} g6 {[%emt 0:00:05]} 5. Nc3 {[%emt 0:00:31]} Bg7 {[%emt 0:00:09]} 6. d3 {[%emt 0:00:22]} h6 {[%emt 0:01:36]} 7. Be3 {[%emt 0:01:14]} O-O {[%emt 0:00:08]} 8. Qd2 {[%emt 0:01:36]} Kh7 {[%emt 0:00:15]} 9. Rfe1 {[%emt 0:02:37]} d5 {[%emt 0:04:53]} 10. exd5 {[%emt 0:01:21]} Nxd5 {[%emt 0:00:08]} 11. Nxd5 {[%emt 0:02:18]} Qxd5 {[%emt 0:01:31]} 12. Bc4 {[%emt 0:01:55]} Qd6 {[%emt 0:01:55]} 13. c3 {[%emt 0:02:37]} Bg4 {[%emt 0:00:48]} 14. Qe2 {[%emt 0:03:48]} f5 {[%emt 0:01:05]} 15. h3 {[%emt 0:01:59]} Bh5 {[%emt 0:00:50]} 16. Rad1 {[%emt 0:04:45]} Qf6 {[%emt 0:01:37]} 17. Bd5 {[%emt 0:04:27]} Ne7 {[%emt 0:03:27]} 18. Bxb7 {[%emt 0:00:49]} Rab8 {[%emt 0:00:13]} 19. Bxa7 {[%emt 0:02:31]} Rxb7 {[%emt 0:00:37]} 20. Be3 {[%emt 0:00:58]} Qa6 {[%emt 0:11:25]} 21. a3 {[%emt 0:01:49]} Nc6 {[%emt 0:06:52]} 22. Kh1 {[%emt 0:06:31]} e4 {[%emt 0:02:05]} 23. dxe4 {[%emt 0:00:10]} Qxe2 {[%emt 0:00:14]} 24. Rxe2 {[%emt 0:00:02]} fxe4 {[%emt 0:00:16]} 25. g4 {[%emt 0:00:41]} exf3 {[%emt 0:00:07]} 26. Ree1 {[%emt 0:00:38]} Bxg4 {[%emt 0:00:14]} 27. hxg4 {[%emt 0:00:09]} Rxb2 {[%emt 0:00:10]} 28. Rb1 {[%emt 0:01:35]} Rxb1 {[%emt 0:00:36]} 29. Rxb1 {[%emt 0:00:15]} Rb8 {[%emt 0:01:04]} 30. Rxb8 {[%emt 0:00:16]} Nxb8 {[%emt 0:00:47]} 31. c4 {[%emt 0:00:12]} g5 {[%emt 0:02:29]} 32. Kh2 {[%emt 0:00:08]} Be5+ {[%emt 0:00:46]} 33. Kg1 {[%emt 0:00:13]} Kg6 {[%emt 0:00:24]} 34. a4 {[%emt 0:00:11]} Kf6 {[%emt 0:00:15]} 35. a5 {[%emt 0:00:13]} Bc3 {[%emt 0:01:36]} 36. Kh2 {[%emt 0:00:22]} Ke5 {[%emt 0:01:31]} 37. c5 {[%emt 0:01:08]} Bxa5 {[%emt 0:00:27]} 38. Kg3 {[%emt 0:00:11]} Ke4 {[%emt 0:00:26]} 39. Kh2 {[%emt 0:00:20]} c6 {[%emt 0:00:20]} 40. Kg3 {[%emt 0:00:13]} Bc7+ {[%emt 0:00:18]} 41. Kh3 {[%emt 0:00:10]} Bf4 {[%emt 0:00:06]} 42. Bd4 {[%emt 0:00:55]} Be5 {[%emt 0:00:51]} 43. Be3 {[%emt 0:00:27]} Bd4 {[%emt 0:00:06]} 44. Bxd4 {[%emt 0:00:15]} Kxd4 {[%emt 0:00:06]} 45. Kg3 {[%emt 0:00:05]} Ke4 {[%emt 0:00:06]} 46. Kh2 {[%emt 0:00:12]} Nd7 {[%emt 0:00:14]} 47. Kg3 {[%emt 0:00:08]} Nxc5 {[%emt 0:00:06]} 48. Kh2 {[%emt 0:00:16]} Nd3 {[%emt 0:00:06]} 49. Kg3 {[%emt 0:00:08]} Nxf2 {[%emt 0:00:25]} 50. Kxf2 {[%emt 0:00:09]} Kf4 {[%emt 0:00:08]} 51. Kg1 {[%emt 0:00:09]} Kxg4 {[%emt 0:00:08]} 52. Kf2 {[%emt 0:00:03]} c5 {[%emt 0:00:05]} 53. Kf1 {[%emt 0:00:05]} c4 {[%emt 0:00:04]} 54. Kf2 {[%emt 0:00:09]} c3 {[%emt 0:00:02]} 55. Ke3 {[%emt 0:00:10]} c2 {[%emt 0:00:07]} 56. Kd4 {[%emt 0:00:07]} c1=Q {[%emt 0:00:08]} 57. Kd5 {[%emt 0:00:03]} f2 {[%emt 0:00:33]} 58. Kd6 {[%emt 0:00:03]} f1=R {[%emt 0:00:13]} 59. Kd5 {[%emt 0:00:10]} Rd1+ {[%emt 0:00:12]} 60. Ke6 {[%emt 0:00:11]} Qe3+ {[%emt 0:00:11]} 61. Kf7 {[%emt 0:00:05]} Rf1+ {[%emt 0:00:13]} 62. Kg6 {[%emt 0:00:06]} Qe6+ {[%emt 0:00:08]} 0-1

[Event "DVM U10 2024"]
[Site "Duesseldorf"]
[Date "2024.12.28"]
[Round "6"]
[White "Wüstenberg, Jan"]
[Black "Städler, Jannis"]
[Result "1-0"]
[ECO "C50"]
[WhiteElo "1221"]
[BlackElo "1082"]
[Annotator "NA RC"]
[PlyCount "75"]
[EventDate "2024.12.23"]
[EventType "team-tourn"]
[EventRounds "7"]
[EventCountry "GER"]
[SourceTitle "playchess.com"]
[Source "ChessBase"]
[SourceQuality "1"]
[TimeControl "3300+5"]

1. e4 {[%emt 0:00:01]} e5 {[%emt 0:00:04]} 2. Nf3 {[%emt 0:00:04]} Nf6 {[%emt 0:00:08]} 3. Bc4 {[%emt 0:00:09]} Bc5 {[%emt 0:00:26]} 4. Nc3 {[%emt 0:00:08]} O-O {[%emt 0:00:07]} 5. d3 {[%emt 0:00:04]} Ng4 {[%emt 0:00:07]} 6. O-O {[%emt 0:00:08]} Nc6 {[%emt 0:00:17]} 7. Bg5 {[%emt 0:00:09]} Nf6 {[%emt 0:00:14]} 8. Nd5 {[%emt 0:00:07]} Be7 {[%emt 0:00:39]} 9. Nxe7+ {[%emt 0:00:14]} Qxe7 {[%emt 0:00:10]} 10. Re1 {[%emt 0:01:38]} d6 {[%emt 0:00:26]} 11. h3 {[%emt 0:00:07]} h6 {[%emt 0:00:17]} 12. Bh4 {[%emt 0:00:08]} Be6 {[%emt 0:00:25]} 13. Bb3 {[%emt 0:00:09]} b5 {[%emt 0:00:38]} 14. a4 {[%emt 0:00:12]} b4 {[%emt 0:00:23]} 15. Bc4 {[%emt 0:00:34]} a5 {[%emt 0:00:31]} 16. Bb5 {[%emt 0:00:11]} Bd7 {[%emt 0:00:43]} 17. c3 {[%emt 0:03:37]} bxc3 {[%emt 0:01:08]} 18. bxc3 {[%emt 0:00:13]} Na7 {[%emt 0:00:57]} 19. Bxf6 {[%emt 0:00:31]} Qxf6 {[%emt 0:00:22]} 20. Bxd7 {[%emt 0:00:12]} c6 {[%emt 0:00:55]} 21. Bg4 {[%emt 0:00:15]} Rab8 {[%emt 0:00:09]} 22. Rb1 {[%emt 0:00:08]} d5 {[%emt 0:00:35]} 23. exd5 {[%emt 0:00:12]} cxd5 {[%emt 0:00:07]} 24. Rxe5 {[%emt 0:00:11]} Rfd8 {[%emt 0:00:46]} 25. Qc2 {[%emt 0:00:26]} Rxb1+ {[%emt 0:02:38]} 26. Qxb1 {[%emt 0:00:10]} Nc6 {[%emt 0:00:13]} 27. Rf5 {[%emt 0:00:29]} Qxc3 {[%emt 0:00:23]} 28. Qb6 {[%emt 0:00:44]} g6 {[%emt 0:01:27]} 29. Rf4 {[%emt 0:01:57]} g5 {[%emt 0:00:23]} 30. Rf5 {[%emt 0:00:43]} Rb8 {[%emt 0:06:19]} 31. Qc7 {[%emt 0:00:38]} Rf8 {[%emt 0:01:29]} 32. Bh5 {[%emt 0:00:53]} f6 {[%emt 0:00:49]} 33. Bg6 {[%emt 0:00:21]} Qc1+ {[%emt 0:03:06]} 34. Kh2 {[%emt 0:00:12]} Ne7 {[%emt 0:02:18]} 35. Qxe7 {[%emt 0:00:29]} Qc7+ {[%emt 0:00:57]} 36. Qxc7 {[%emt 0:00:09]} Rf7 {[%emt 0:00:12]} 37. Qxf7+ {[%emt 0:00:11]} Kh8 {[%emt 0:00:10]} 38. Qh7# {[%emt 0:00:06]} 1-0

[Event "DVM U10 2024"]
[Site "Duesseldorf"]
[Date "2024.12.28"]
[Round "6"]
[White "Nickel, Alexander"]
[Black "Breaz, Arthur"]
[Result "0-1"]
[ECO "C58"]
[WhiteElo "1200"]
[BlackElo "1123"]
[Annotator "NA RC"]
[PlyCount "44"]
[EventDate "2024.12.23"]
[EventType "team-tourn"]
[EventRounds "7"]
[EventCountry "GER"]
[SourceTitle "playchess.com"]
[Source "ChessBase"]
[SourceQuality "1"]
[TimeControl "3300+5"]

1. e4 {[%emt 0:00:03]} e5 {[%emt 0:00:05]} 2. Nf3 {[%emt 0:00:06]} Nc6 {[%emt 0:00:11]} 3. Bc4 {[%emt 0:00:11]} Nf6 {[%emt 0:00:10]} 4. Ng5 {[%emt 0:00:13]} d5 {[%emt 0:00:07]} 5. exd5 {[%emt 0:00:10]} Na5 {[%emt 0:00:13]} 6. Bb5+ {[%emt 0:00:15]} c6 {[%emt 0:00:33]} 7. dxc6 {[%emt 0:00:07]} bxc6 {[%emt 0:00:12]} 8. Ba4 {[%emt 0:00:17]} h6 {[%emt 0:00:18]} 9. Nf3 {[%emt 0:00:16]} e4 {[%emt 0:00:07]} 10. Ne5 {[%emt 0:00:49]} Bd6 {[%emt 0:00:26]} 11. Nxc6 {[%emt 0:00:24]} Qd7 {[%emt 0:01:23]} 12. Nxa5 {[%emt 0:01:19]} Qxa4 {[%emt 0:00:21]} 13. Nb3 {[%emt 0:00:10]} Bb7 {[%emt 0:02:07]} 14. Nc3 {[%emt 0:00:08]} Qd7 {[%emt 0:00:37]} 15. Qe2 {[%emt 0:00:32]} O-O {[%emt 0:01:05]} 16. O-O {[%emt 0:00:05]} Rfe8 {[%emt 0:01:10]} 17. d4 {[%emt 0:00:35]} exd3 {[%emt 0:00:18]} 18. Qxd3 {[%emt 0:00:14]} Qc6 {[%emt 0:01:01]} 19. f3 {[%emt 0:01:54]} Ba6 {[%emt 0:00:53]} 20. Qd1 {[%emt 0:01:24]} Bxf1 {[%emt 0:00:16]} 21. Qxf1 {[%emt 0:00:16]} Qb6+ {[%emt 0:00:29]} 22. Qf2 {[%emt 0:00:25]} Re1# {[%emt 0:00:13]} 0-1

[Event "DVM U10 2024"]
[Site "Duesseldorf"]
[Date "2024.12.28"]
[Round "6"]
[White "Michelson, Nathan"]
[Black "Hübner, Jakob"]
[Result "0-1"]
[ECO "B45"]
[WhiteElo "1198"]
[BlackElo "1045"]
[Annotator "NA RC"]
[PlyCount "76"]
[EventDate "2024.12.23"]
[EventType "team-tourn"]
[EventRounds "7"]
[EventCountry "GER"]
[SourceTitle "playchess.com"]
[Source "ChessBase"]
[SourceQuality "1"]
[TimeControl "3300+5"]

1. e4 {[%emt 0:00:02]} c5 {[%emt 0:00:05]} 2. Nf3 {[%emt 0:00:16]} e6 {[%emt 0:00:10]} 3. d4 {[%emt 0:00:05]} cxd4 {[%emt 0:00:11]} 4. Nxd4 {[%emt 0:00:12]} Nc6 {[%emt 0:00:08]} 5. Nc3 {[%emt 0:00:16]} Nf6 {[%emt 0:00:15]} 6. Bd3 {[%emt 0:00:31]} Nxd4 {[%emt 0:00:24]} 7. e5 {[%emt 0:00:15]} Nd5 {[%emt 0:00:23]} 8. Be4 {[%emt 0:00:54]} Nc6 {[%emt 0:00:41]} 9. Nxd5 {[%emt 0:00:13]} exd5 {[%emt 0:00:18]} 10. Bxd5 {[%emt 0:01:01]} Nxe5 {[%emt 0:00:33]} 11. Qh5 {[%emt 0:00:36]} Qa5+ {[%emt 0:01:01]} 12. c3 {[%emt 0:00:51]} Qxd5 {[%emt 0:00:12]} 13. O-O {[%emt 0:00:10]} Qe6 {[%emt 0:00:36]} 14. Bf4 {[%emt 0:00:46]} d6 {[%emt 0:00:54]} 15. Rfe1 {[%emt 0:00:08]} Qf5 {[%emt 0:00:54]} 16. Qxf5 {[%emt 0:00:42]} Bxf5 {[%emt 0:00:11]} 17. Bxe5 {[%emt 0:00:04]} dxe5 18. Rxe5+ {[%emt 0:00:01]} Be6 {[%emt 0:01:14]} 19. f4 {[%emt 0:00:08]} Bd6 {[%emt 0:00:24]} 20. Re4 {[%emt 0:00:22]} O-O {[%emt 0:00:19]} 21. b4 {[%emt 0:00:23]} Rac8 {[%emt 0:00:47]} 22. Rc1 {[%emt 0:00:33]} Bxa2 {[%emt 0:01:18]} 23. Kh1 {[%emt 0:13:44]} a5 {[%emt 0:00:58]} 24. bxa5 {[%emt 0:04:48]} Ra8 {[%emt 0:00:23]} 25. Rd4 {[%emt 0:06:27]} Bc5 {[%emt 0:01:42]} 26. Rd2 {[%emt 0:00:15]} Be3 {[%emt 0:00:28]} 27. Rxa2 {[%emt 0:02:04]} Bxc1 {[%emt 0:00:16]} 28. Ra1 {[%emt 0:00:08]} Bb2 {[%emt 0:00:15]} 29. Rg1 {[%emt 0:09:00]} Bxc3 {[%emt 0:00:36]} 30. f5 {[%emt 0:00:12]} Rxa5 {[%emt 0:00:22]} 31. h3 {[%emt 0:00:09]} Rfa8 {[%emt 0:00:24]} 32. Kh2 {[%emt 0:00:13]} Ra2 {[%emt 0:00:25]} 33. f6 {[%emt 0:00:37]} Be5+ {[%emt 0:00:36]} 34. Kh1 {[%emt 0:00:13]} Ra1 {[%emt 0:00:21]} 35. fxg7 {[%emt 0:00:07]} Rxg1+ {[%emt 0:00:41]} 36. Kxg1 {[%emt 0:00:18]} Bg3 {[%emt 0:00:11]} 37. Kf1 {[%emt 0:00:07]} Re8 {[%emt 0:00:24]} 38. h4 {[%emt 0:00:11]} Re1# {[%emt 0:00:07]} 0-1